bitfinex-derivatives/quotes_ETHF0:USTF0_20250926
["timestamp","ask_amount","ask_price","bid_price","bid_amount"]
[1758894140822,0.2004,3937.8,3936.6,11.42305]
[1758894140823,0.2004,3937.8,3937.5,3.66461]
[1758894141024,0.494,3937.7,3937.6,0.7378]
[1758894141421,3.4082,3939.0,3938.6,0.45668]
[1758894141622,3.4082,3939.0,3938.4,0.281]
[1758894142032,0.65712,3938.4,3937.7,0.281]
[1758894142234,0.2004,3938.4,3937.9,0.45677]
[1758894142435,0.2004,3938.4,3937.7,0.73779]
[1758894142644,0.2004,3938.4,3937.7,0.281]
[1758894142844,0.2004,3938.4,3937.6,0.4568]
[1758894143043,0.45674,3938.2,3937.7,0.73779]
[1758894143242,0.2004,3938.4,3937.7,0.73779]
[1758894143438,0.494,3938.0,3937.7,0.281]
[1758894143645,0.494,3938.0,3937.6,0.281]
[1758894143837,0.0253,3938.1,3937.6,0.281]
[1758894144139,0.45676,3938.0,3937.6,0.281]
[1758894144450,0.45676,3938.0,3937.6,0.7378]
[1758894144741,0.494,3937.7,3937.6,0.281]
[1758894144937,0.45681,3937.6,3937.4,0.281]
[1758894145141,0.494,3937.5,3937.4,0.281]
[1758894145840,0.2004,3937.8,3937.5,0.45682]
[1758894146234,0.494,3937.7,3937.6,0.4568]
[1758894146538,0.494,3937.6,3937.4,0.281]
[1758894146745,0.45684,3937.4,3937.1,0.28]
[1758894146940,3.2078,3937.3,3936.4,3.2078]
[1758894147145,0.494,3937.1,3936.5,0.28]
[1758894147341,0.494,3937.1,3936.6,0.28]
[1758894147539,3.2078,3937.7,3936.9,3.2078]
[1758894147738,0.494,3937.8,3937.6,0.4568]
[1758894148439,3.2078,3939.4,3938.0,0.469]
[1758894148744,3.2078,3939.4,3939.0,0.45664]
[1758894149133,3.2078,3939.4,3938.6,0.28]
[1758894149336,0.2004,3939.6,3938.8,0.45666]
[1758894149540,3.2078,3939.4,3938.4,3.2078]
[1758894149738,3.2078,3939.4,3937.8,0.1901]
[1758894149739,1.34185,3939.6,3938.6,0.45668]
[1758894149935,0.45665,3939.0,3938.7,0.45667]
[1758894150141,0.45666,3938.9,3938.7,0.45667]
[1758894150344,0.494,3938.8,3938.7,0.45667]
[1758894150544,0.45666,3938.9,3938.3,0.28]
[1758894150740,0.494,3938.6,3938.4,0.45671]
[1758894150941,0.494,3938.6,3938.4,3.66451]
[1758894151243,0.494,3938.6,3938.4,0.45671]
[1758894151447,0.45669,3938.6,3938.3,0.28]
[1758894151747,0.494,3938.8,3938.2,0.28]
[1758894151941,4.34945,3938.9,3938.0,3.2078]
[1758894152244,0.2004,3939.0,3938.1,1.14187]
[1758894152245,0.65705,3939.0,3938.1,1.14187]
[1758894152440,0.494,3939.1,3938.7,0.45667]
[1758894152647,0.494,3939.0,3938.4,0.28]
[1758894152841,0.45666,3938.9,3938.4,0.28]
[1758894153041,3.2078,3939.0,3938.8,0.45666]
[1758894153345,3.86485,3939.0,3938.7,0.45667]
[1758894153536,0.494,3938.9,3938.0,44.0078]
[1758894153739,0.494,3938.4,3938.3,0.45672]
[1758894154244,3.7018,3939.1,3939.0,0.45664]
[1758894154548,0.0253,3939.2,3938.9,0.45665]
[1758894154746,0.0253,3939.2,3938.8,0.28]
[1758894154747,3.2078,3939.2,3938.8,0.28]
[1758894155042,0.45663,3939.1,3938.8,0.28]
[1758894155242,0.494,3939.1,3938.9,0.45665]
[1758894155442,0.494,3939.1,3938.8,0.28]
[1758894155642,0.494,3939.0,3938.9,0.45665]
[1758894156245,0.45655,3939.8,3939.6,0.45657]
[1758894156450,0.45655,3939.8,3939.0,1.14161]
[1758894156451,0.494,3939.9,3939.1,0.45663]
[1758894156644,3.66438,3939.6,3939.4,0.45659]
[1758894156847,0.2004,3940.0,3939.4,0.45659]
[1758894157056,0.2004,3940.0,3939.2,0.28]
[1758894157057,3.2078,3940.0,3939.8,0.45654]
[1758894157247,3.2078,3940.0,3939.9,0.469]
[1758894157555,0.4818,3940.9,3940.8,0.45643]
[1758894157746,0.4818,3941.4,3941.0,0.4564]
[1758894157944,0.4818,3941.4,3940.4,3.2078]
[1758894158142,3.6896,3941.2,3940.4,3.2078]
[1758894158445,0.4818,3940.7,3939.8,0.4724]
[1758894158745,0.4818,3940.7,3939.5,3.4129]
[1758894158746,0.45652,3940.1,3939.7,0.28]
[1758894159248,0.4818,3939.9,3939.7,0.28]
[1758894159441,0.45655,3939.8,3939.7,0.28]
[1758894159642,0.93835,3939.8,3939.7,0.28]
[1758894159843,0.4818,3939.8,3939.7,0.28]
[1758894160152,0.4818,3940.4,3939.7,0.28]
[1758894160444,0.4818,3940.4,3940.0,3.66432]
[1758894160646,0.45648,3940.4,3940.0,0.92892]
[1758894160850,0.4818,3940.1,3939.5,0.92898]
[1758894161044,0.45652,3940.1,3939.9,0.28]
[1758894161348,0.4818,3940.0,3939.9,0.28]
[1758894161742,0.4818,3940.8,3939.9,0.28]
[1758894161945,3.3975,3941.0,3940.2,0.4565]
[1758894162246,0.45645,3940.7,3940.0,3.2078]
[1758894162543,0.45645,3940.7,3940.3,0.92888]
[1758894162750,0.45646,3940.6,3940.3,0.4724]
[1758894162950,0.45646,3940.6,3940.0,3.2078]
[1758894162951,0.0253,3941.2,3940.5,3.2078]
[1758894163252,0.0253,3941.2,3941.0,0.4564]
[1758894163439,0.0253,3941.2,3941.0,0.4724]
[1758894163645,3.2078,3941.4,3940.9,0.279]
[1758894163851,0.4818,3940.9,3939.9,0.4724]
[1758894164048,0.45645,3940.7,3940.4,0.45648]
[1758894164351,0.4818,3940.6,3940.5,0.45646]
[1758894165046,0.4818,3940.5,3940.4,0.279]
[1758894165353,0.4818,3940.5,3939.9,0.4724]
[1758894165547,3.2078,3940.5,3940.2,0.4565]
[1758894165741,3.2078,3940.5,3940.0,0.279]
[1758894165742,0.4818,3940.4,3940.0,0.279]
[1758894165944,0.4818,3940.4,3940.1,0.4565]
[1758894166145,0.93829,3940.4,3940.0,0.279]
[1758894166356,0.4565,3940.3,3940.0,0.73552]
[1758894166649,0.0253,3940.7,3940.0,3.4868]
[1758894166849,0.0253,3940.7,3940.5,0.45646]
[1758894167553,0.0253,3940.7,3940.5,0.279]
[1758894167850,0.4818,3940.6,3940.5,0.279]
[1758894168152,0.0253,3940.7,3940.6,0.45645]
[1758894168350,0.0253,3940.7,3940.6,0.92885]
[1758894169652,0.9382,3941.1,3940.9,0.45642]
[1758894170151,0.4818,3941.0,3940.9,0.45642]
[1758894170344,0.6822,3941.5,3941.4,0.45636]
[1758894170646,0.2004,3941.5,3941.3,0.45637]
[1758894170854,0.4818,3941.4,3941.3,0.45637]
[1758894171855,0.4818,3941.4,3940.8,3.2078]
[1758894172152,0.93823,3940.8,3940.7,41.079]
[1758894172349,0.93823,3940.8,3940.7,40.8]
[1758894172553,0.45648,3940.4,3939.7,1.1414]
[1758894172859,0.45648,3940.4,3939.5,0.4724]
[1758894172860,0.4818,3940.1,3940.0,0.45653]
[1758894173358,0.4818,3939.9,3939.4,3.2078]
[1758894173548,0.4818,3939.8,3939.6,0.45657]
[1758894173749,0.4818,3939.8,3939.7,0.45655]
[1758894173950,0.45656,3939.8,3939.7,0.45656]
[1758894174150,3.2078,3940.3,3940.2,0.4565]
[1758894174346,4.23042403,3940.3,3940.2,0.4565]
[1758894174753,0.4818,3940.1,3940.0,0.45652]
[1758894174953,0.45653,3940.0,3939.8,0.45654]
[1758894175254,0.45656,3939.7,3939.5,0.45657]
[1758894175454,0.45656,3939.7,3939.3,0.279]
[1758894175648,3.2078,3939.9,3939.3,0.279]
[1758894175849,0.45652,3940.1,3939.9,0.45653]
[1758894176062,1.02310121,3940.0,3939.9,0.45653]
[1758894176453,0.54130121,3940.0,3939.9,0.45653]
[1758894176759,0.93829,3940.3,3940.1,0.45651]
[1758894176953,0.54159304,3940.2,3940.1,0.45651]
[1758894177267,1.02339304,3940.2,3940.1,0.45651]
[1758894178055,0.45655,3939.9,3939.8,0.279]
[1758894178259,1.47994304,3939.9,3939.8,0.279]
[1758894178448,1.47993304,3939.9,3939.7,0.45656]
[1758894178656,1.02339304,3939.8,3939.7,0.45656]
[1758894178953,0.45658,3939.6,3939.4,0.279]
[1758894179154,1.02339304,3939.5,3939.4,0.279]
[1758894179355,0.54159304,3939.5,3939.4,0.7514]
[1758894179556,0.4818,3939.8,3939.7,0.45656]
[1758894179758,0.4818,3940.6,3940.4,0.45648]
[1758894179953,1.02452775,3940.5,3940.4,0.45648]
[1758894180355,0.54272775,3940.5,3940.4,0.92888]
[1758894180554,0.4818,3941.0,3940.9,0.45642]
[1758894180756,0.5071,3941.4,3941.2,0.45639]
[1758894180958,1.02458978,3941.3,3941.2,0.45639]
[1758894181458,0.54278978,3941.3,3941.2,0.73539]
[1758894181662,0.54278978,3941.3,3941.2,1.20779]
[1758894181865,0.4818,3941.9,3941.2,0.7514]
[1758894182155,0.4818,3941.9,3941.8,0.45631]
[1758894182359,0.4687,3942.5,3941.7,0.279]
[1758894182556,0.4818,3942.3,3942.2,0.45627]
[1758894182859,1.02450049,3942.3,3942.1,0.45628]
[1758894183066,0.54270049,3942.2,3942.1,4.13648]
[1758894183262,3.2078,3943.2,3942.1,4.41548]
[1758894183560,1.0241277,3943.1,3942.5,3.6802]
[1758894183765,0.4818,3942.7,3942.6,0.279]
[1758894183972,0.4818,3942.6,3942.5,0.279]
[1758894184160,1.0241277,3942.6,3942.5,0.279]
[1758894184462,0.4818,3943.9,3943.5,0.45612]
[1758894184669,0.54209136,3943.8,3943.5,0.45612]
[1758894184867,0.54209136,3943.7,3943.6,0.279]
[1758894185056,0.5071,3944.1,3943.8,0.4724]
[1758894185359,1.48796689,3944.0,3943.9,0.279]
[1758894185566,1.48796689,3944.0,3943.2,0.4793]
[1758894185762,0.0253,3944.1,3943.6,3.2078]
[1758894185967,0.0253,3944.1,3944.0,3.6871]
[1758894187365,0.0253,3944.1,3944.0,0.4793]
[1758894187668,0.9466,3944.6,3944.0,3.6871]
[1758894187865,0.4783,3944.7,3944.2,0.45604]
[1758894188065,0.4783,3944.7,3944.1,0.279]
[1758894188269,0.4783,3944.3,3944.1,0.279]
[1758894188558,3.2078,3944.8,3944.2,0.93004]
[1758894188559,0.4783,3944.6,3944.2,0.93004]
[1758894188760,0.45601,3944.5,3944.2,0.474]
[1758894188962,0.45607,3944.0,3943.6,0.474]
[1758894189154,0.45605,3944.2,3943.8,0.93008]
[1758894189359,0.4783,3944.5,3943.7,0.279]
[1758894189360,0.93431,3944.5,3944.0,0.45606]
[1758894189665,0.4783,3944.5,3944.1,0.73505]
[1758894189963,0.4783,3945.6,3944.5,0.1852]
[1758894190166,0.4783,3945.6,3945.5,0.45589]
[1758894190363,0.4783,3945.6,3945.4,0.4559]
[1758894190561,3.6861,3946.4,3945.6,0.474]
[1758894190763,0.0253,3946.0,3945.7,40.8]
[1758894190960,0.0253,3946.0,3945.8,0.45586]
[1758894191268,0.0253,3946.0,3945.9,0.753]
[1758894191468,0.0253,3946.0,3945.9,0.474]
[1758894191663,0.45585,3945.9,3945.3,0.474]
[1758894191861,0.4783,3945.7,3945.4,41.079]
[1758894192267,3.68893,3946.0,3945.5,0.279]
[1758894192566,0.45587,3945.7,3945.5,0.753]
[1758894192865,0.4783,3945.9,3945.5,0.279]
[1758894193170,0.0253,3946.0,3945.9,0.92984]
[1758894193372,0.0253,3946.0,3945.9,0.279]
[1758894193668,0.5036,3946.0,3945.9,0.279]
[1758894194457,1.13965,3945.8,3944.3,0.474]
[1758894194671,0.45599,3944.7,3944.4,0.279]
[1758894194969,0.93433,3944.3,3944.2,3.2078]
[1758894195665,0.4783,3943.8,3943.7,0.279]
[1758894196258,0.4783,3943.8,3943.4,40.8]
[1758894196259,0.45612,3943.6,3943.4,40.8]
[1758894196459,3.2078,3943.9,3943.0,3.2078]
[1758894196460,0.4783,3943.2,3943.0,3.2078]
[1758894196764,0.93446,3943.2,3943.1,0.279]
[1758894197065,0.93446,3943.2,3942.5,3.2078]
[1758894197066,0.45619,3943.0,3942.6,0.45622]
[1758894197258,0.45616,3943.2,3942.8,0.474]
[1758894197771,3.6861,3943.4,3942.7,0.279]
[1758894197958,3.2078,3943.8,3942.8,0.474]
[1758894198263,3.2078,3943.8,3943.4,0.45613]
[1758894198460,3.2078,3943.8,3943.5,0.753]
[1758894198461,0.0253,3943.7,3943.5,0.753]
[1758894198657,0.93441,3943.6,3943.5,0.279]
[1758894198967,0.4783,3943.6,3943.5,0.279]
[1758894199170,0.48141,3943.7,3943.5,0.279]
[1758894199468,0.4783,3943.6,3943.5,0.279]
[1758894199661,0.4783,3943.4,3943.0,3.6818]
[1758894199967,0.0253,3943.7,3943.2,0.45615]
[1758894200172,0.0253,3943.7,3943.6,0.45611]
[1758894200468,0.0253,3943.7,3943.6,1.20911]
[1758894200662,3.2078,3944.2,3943.7,0.474]
[1758894200857,3.2078,3944.2,3943.6,0.753]
[1758894201169,3.2078,3944.2,3944.0,0.93006]
[1758894201756,3.2078,3944.2,3944.0,0.45606]
[1758894201963,0.4783,3944.1,3944.0,0.279]
[1758894202164,0.4783,3943.9,3943.3,0.279]
[1758894202365,0.4783,3944.1,3944.0,0.45605]
[1758894202865,3.2078,3944.6,3944.5,0.474]
[1758894203170,0.4783,3944.9,3944.8,0.45596]
[1758894203366,0.4783,3944.9,3944.2,3.2078]
[1758894203569,0.4783,3944.9,3944.7,0.45598]
[1758894203765,3.2078,3945.0,3944.8,1.20896]
[1758894203968,0.4783,3944.9,3944.2,0.474]
[1758894204169,3.2078,3945.0,3944.8,0.45597]
[1758894204469,3.2078,3945.0,3944.5,0.456]
[1758894204470,0.4783,3944.7,3944.5,0.456]
[1758894204661,0.4783,3944.3,3944.0,0.279]
[1758894204861,0.4783,3944.2,3944.1,0.45605]
[1758894205060,0.4783,3944.0,3943.7,3.2078]
[1758894205268,0.4561,3943.7,3943.4,0.279]
[1758894205660,0.4783,3943.4,3943.2,0.45615]
[1758894205869,0.4783,3943.4,3942.9,0.279]
[1758894206170,0.4783,3943.4,3943.3,0.45614]
[1758894206365,0.4783,3943.4,3942.8,44.0078]
[1758894206366,0.45616,3943.2,3942.9,0.45619]
[1758894206563,0.4783,3942.9,3942.3,3.2078]
[1758894206764,0.4783,3942.9,3942.8,0.4562]
[1758894208268,0.4783,3942.6,3941.9,44.0078]
[1758894208474,0.1956,3942.5,3941.9,44.0078]
[1758894208668,0.4783,3942.4,3942.0,0.279]
[1758894208864,0.65184,3942.5,3941.6,1.14084]
[1758894208865,0.4783,3942.3,3942.1,0.45628]
[1758894209175,0.1956,3942.5,3942.1,0.45628]
[1758894209176,0.45626,3942.4,3942.1,0.45628]
[1758894209471,0.45626,3942.4,3941.8,0.279]
[1758894209472,0.1956,3942.5,3942.4,0.45625]
[1758894209672,0.6739,3942.5,3942.4,0.45625]
[1758894209972,0.6739,3942.5,3941.8,0.279]
[1758894209973,0.73525365,3942.5,3942.2,0.45627]
[1758894210169,0.4783,3942.4,3941.8,0.279]
[1758894210365,3.2078,3942.3,3941.8,0.45632]
[1758894210564,0.45628,3942.2,3941.9,0.4563]
[1758894210868,0.4783,3941.9,3941.1,44.0078]
[1758894211068,3.2078,3942.3,3941.1,44.0078]
[1758894211069,3.2078,3942.7,3941.8,1.1408]
[1758894211377,3.2078,3943.2,3942.3,0.474]
[1758894211566,0.4783,3943.1,3942.9,0.45619]
[1758894211869,3.2078,3943.2,3942.3,0.474]
[1758894212072,0.4783,3942.5,3942.4,0.279]
[1758894212273,0.45626,3942.3,3941.7,0.474]
[1758894212470,0.4783,3942.5,3942.3,0.45626]
[1758894212768,0.1956,3942.5,3941.8,1.4198]
[1758894212970,3.2078,3942.7,3942.4,0.45624]
[1758894212971,0.45622,3942.7,3942.4,0.45624]
[1758894213169,0.4783,3942.6,3942.4,0.45624]
[1758894213369,0.4783,3942.4,3942.2,0.45626]
[1758894213871,0.45625,3942.4,3942.2,0.73527]
[1758894214064,0.4783,3942.3,3941.6,3.2078]
[1758894214272,0.4783,3941.8,3941.7,0.73533]
[1758894214664,0.45631,3941.9,3941.6,0.45634]
[1758894214869,3.2078,3942.1,3941.4,0.73536]
[1758894215063,0.93465,3941.5,3941.4,0.279]
[1758894215370,0.93465,3941.5,3941.1,40.8]
[1758894215571,3.2078,3941.7,3940.8,3.2078]
[1758894215572,0.4783,3940.9,3940.8,3.2078]
[1758894215875,0.93467,3941.4,3941.2,0.45638]
[1758894216077,0.45635,3941.5,3941.3,0.45637]
[1758894216268,0.93465,3941.5,3941.3,0.45637]
[1758894216572,3.2078,3941.7,3941.5,0.45635]
[1758894217073,4.14243,3941.7,3941.5,0.73535]
[1758894217273,3.2078,3942.7,3941.6,6.53083165]
[1758894217466,3.2078,3942.7,3942.5,0.45623]
[1758894217670,3.2078,3942.7,3941.9,0.4542]
[1758894217975,3.2078,3942.7,3942.5,0.45623]
[1758894218170,3.2078,3942.7,3942.5,1.18943]
[1758894218571,0.90798,3943.0,3942.8,0.45619]
[1758894218771,0.45619,3942.9,3942.5,0.7332]
[1758894218968,0.45621,3942.8,3942.5,0.7332]
[1758894219274,0.90801,3942.8,3942.5,0.7332]
[1758894219674,0.4518,3942.8,3942.6,0.45622]
[1758894219975,3.2078,3943.3,3942.9,0.45619]
[1758894220171,0.45619,3942.9,3942.5,0.4542]
[1758894220379,0.45618,3943.1,3942.9,0.45619]
[1758894220767,0.45617,3943.1,3942.8,0.45619]
[1758894221077,0.45618,3943.0,3942.8,0.4562]
[1758894221278,0.4518,3943.0,3942.8,0.4562]
[1758894221468,4.11575,3943.3,3943.2,0.45616]
[1758894221665,3.2078,3943.3,3942.7,0.4542]
[1758894221868,3.6596,3943.3,3942.6,0.279]
[1758894222275,3.2078,3943.3,3943.1,0.91037]
[1758894222575,3.2078,3943.3,3943.2,0.4542]
[1758894223272,0.45616,3943.2,3943.1,0.73517]
[1758894223474,0.4518,3943.2,3943.1,0.73517]
[1758894223679,0.45615,3943.3,3943.1,0.279]
[1758894223875,0.45619,3943.0,3942.8,0.4562]
[1758894224179,0.90799,3943.0,3942.9,0.279]
[1758894224381,0.4518,3942.7,3942.6,0.45623]
[1758894224777,0.90801,3942.7,3942.6,0.279]
[1758894225473,0.4518,3942.5,3942.1,0.4542]
[1758894225674,0.4518,3942.7,3942.3,0.91046]
[1758894225878,3.2078,3942.8,3942.6,0.45621]
[1758894226076,0.4518,3943.2,3942.5,0.4542]
[1758894226372,0.90801,3942.7,3942.6,0.279]
[1758894226581,0.4562,3942.8,3942.6,0.279]
[1758894226774,4.34816,3943.4,3942.6,0.279]
[1758894226775,0.45621,3942.7,3942.6,0.279]
[1758894226980,0.90801,3942.7,3942.6,0.279]
[1758894227179,0.4518,3942.7,3942.6,0.279]
[1758894227375,3.2078,3942.8,3942.6,0.279]
[1758894227673,0.90801,3942.7,3942.6,0.279]
[1758894228077,3.664,3942.8,3942.6,1.18942]
[1758894228281,0.45621,3942.7,3942.6,0.279]
[1758894228484,0.90801,3942.7,3942.6,0.279]
[1758894228978,0.90801,3942.7,3941.7,0.4542]
[1758894228979,1.59236,3942.7,3942.2,0.279]
[1758894229275,0.45625,3942.4,3942.2,0.73527]
[1758894229477,0.90806,3942.3,3942.2,0.279]
[1758894229679,0.45631,3941.9,3941.7,0.91053]
[1758894229873,0.45631,3941.9,3941.8,0.279]
[1758894230079,0.90811,3941.9,3941.8,0.279]
[1758894230279,0.90811,3941.9,3941.7,41.25633]
[1758894230280,0.90812,3941.8,3941.7,40.8]
[1758894230476,1.59263,3941.8,3941.2,0.4542]
[1758894230677,0.45639,3941.2,3941.1,3.2078]
[1758894230874,0.90819,3941.2,3941.1,0.279]
[1758894231073,1.14109,3940.8,3940.1,3.2078]
[1758894231272,0.1833,3941.0,3940.2,0.279]
[1758894231480,0.1833,3941.0,3940.8,0.4542]
[1758894231481,0.45641,3941.0,3940.8,0.4542]
[1758894231680,3.2078,3941.2,3941.1,0.4564]
[1758894231980,3.2078,3941.8,3941.6,0.45633]
[1758894232182,0.4518,3942.2,3941.9,0.4563]
[1758894232372,0.4518,3942.3,3941.6,0.4542]
[1758894232572,0.4518,3941.8,3941.7,0.279]
[1758894232786,0.90812,3941.8,3941.7,0.279]
[1758894232977,0.4518,3941.8,3941.7,0.279]
[1758894233178,0.4518,3942.0,3941.7,0.279]
[1758894233377,0.1833,3942.0,3941.7,0.279]
[1758894233687,0.45628,3942.1,3941.7,0.73532]
[1758894233885,0.90808,3942.1,3941.8,0.45632]
[1758894234082,0.45631,3941.9,3941.7,0.279]
[1758894234272,0.55142948,3941.8,3941.3,3.2078]
[1758894234585,0.4518,3941.4,3941.3,3.2078]
[1758894234884,0.55142948,3941.4,3941.3,3.4868]
[1758894235083,0.63972,3941.0,3940.8,3.2078]
[1758894235281,0.55142948,3940.9,3940.8,3.2078]
[1758894235481,0.64467354,3940.9,3940.3,0.45649]
[1758894235779,0.4518,3940.6,3940.4,0.45647]
[1758894236081,0.09960804,3940.5,3940.3,0.91069]
[1758894236285,0.6351,3941.5,3940.5,1.14118]
[1758894236579,0.6351,3941.5,3941.0,0.4564]
[1758894236580,0.64449987,3941.4,3941.0,0.4564]
[1758894236773,0.09960963,3941.3,3941.2,0.45639]
[1758894236976,0.09960963,3941.3,3941.2,0.91059]
[1758894237176,0.4518,3941.2,3941.1,0.45639]
[1758894237384,0.09960963,3941.2,3941.1,0.73539]
[1758894237587,0.55140963,3941.2,3941.1,0.45639]
[1758894237788,0.55140963,3941.2,3941.1,0.279]
[1758894237983,0.55140963,3941.2,3940.3,0.4542]
[1758894238176,0.90823,3940.9,3940.4,0.279]
[1758894238382,0.45645,3940.7,3940.4,0.279]
[1758894238582,0.55140963,3940.6,3940.5,0.45646]
[1758894238874,0.09960963,3940.6,3940.5,0.45646]
[1758894239082,0.4518,3940.5,3940.4,0.279]
[1758894239279,0.4518,3940.4,3939.7,0.279]
[1758894239485,0.45653,3940.0,3939.9,0.45654]
[1758894239680,0.55140963,3940.0,3939.9,0.45654]
[1758894239884,0.90824,3940.7,3939.9,0.4542]
[1758894240184,0.4518,3940.5,3940.4,0.45647]
[1758894240386,0.09952517,3940.5,3940.4,1.18967]
[1758894240580,0.09952517,3940.5,3940.4,0.73547]
[1758894240886,0.09952517,3940.5,3940.1,44.0078]
[1758894241085,3.6596,3941.1,3940.1,44.0078]
[1758894241086,0.09952517,3940.4,3940.3,0.91069]
[1758894241286,0.4518,3941.3,3941.2,0.45639]
[1758894241581,0.09951637,3941.3,3941.2,0.91059]
[1758894241784,0.09951637,3941.3,3941.2,0.45639]
[1758894241980,0.09951637,3941.3,3941.2,0.91059]
[1758894242287,0.09951637,3941.3,3941.2,1.18959]
[1758894242585,0.09951637,3941.3,3941.2,6.18959]
[1758894242789,0.4518,3942.3,3941.7,0.45632]
[1758894242978,0.4518,3942.3,3940.7,3.2078]
[1758894242979,1.14077,3941.9,3940.7,3.2078]
[1758894243185,0.4518,3941.2,3940.8,0.7332]
[1758894243480,0.09952024,3941.1,3941.0,0.4542]
[1758894243786,0.45631,3941.9,3941.7,0.45632]
[1758894244089,0.4518,3941.7,3941.5,0.45635]
[1758894244291,0.09953714,3941.6,3941.0,0.6377]
[1758894244486,0.09953714,3941.6,3941.5,0.4542]
[1758894244687,0.09953714,3941.6,3941.5,0.91055]
[1758894244887,0.09953714,3941.6,3940.9,1.59525]
[1758894245088,0.4755,3941.4,3941.2,0.45638]
[1758894245384,0.45639,3941.2,3941.0,0.7332]
[1758894245593,0.4755,3940.9,3940.8,3.2078]
[1758894245786,1.0313957,3940.9,3940.8,3.2078]
[1758894245982,6.0313957,3940.9,3940.8,3.2078]
[1758894246285,0.4565,3940.3,3940.2,0.279]
[1758894246488,0.4565,3940.3,3939.8,3.2078]
[1758894246489,0.45653,3940.0,3939.8,3.2078]
[1758894246689,0.45653,3940.0,3939.7,0.45656]
[1758894246690,0.09934778,3939.9,3939.7,0.45656]
[1758894246890,3.2078,3940.8,3940.1,0.45651]
[1758894247086,0.45646,3940.6,3940.2,0.279]
[1758894247284,0.09935102,3940.5,3940.4,0.4439]
[1758894247482,0.09933213,3940.5,3940.4,0.4439]
[1758894247991,3.3845,3942.0,3941.7,0.45633]
[1758894248199,0.09937425,3941.9,3941.8,0.467]
[1758894248681,0.45625,3942.4,3941.8,0.467]
[1758894248880,0.09940799,3942.3,3942.2,0.467]
[1758894249093,0.09940799,3942.3,3942.2,0.746]
[1758894249595,0.1766,3943.5,3942.9,0.467]
[1758894249793,1.1405,3942.9,3941.8,0.467]
[1758894249987,0.4553,3941.8,3941.7,40.8]
[1758894250183,0.4553,3942.1,3941.1,0.279]
[1758894250388,0.45636,3941.4,3941.1,1.20239]
[1758894250592,0.4553,3942.1,3941.4,0.467]
[1758894250904,0.45641,3941.0,3940.8,0.467]
[1758894251202,0.45647,3940.5,3940.4,3.2078]
[1758894251401,1.14106,3940.9,3940.4,0.279]
[1758894251698,0.4553,3940.8,3940.5,0.279]
[1758894252196,0.4553,3940.6,3940.5,0.279]
[1758894252787,0.45644,3940.8,3940.5,0.73546]
[1758894252988,0.45645,3940.7,3940.5,0.746]
[1758894253593,0.45644,3940.8,3940.6,0.467]
[1758894253785,0.45642,3941.0,3940.6,0.467]
[1758894253991,0.4553,3941.2,3940.8,0.45643]
[1758894254190,0.45638,3941.3,3940.9,3.4868]
[1758894254392,0.0253,3941.1,3941.0,0.467]
[1758894254588,0.0253,3941.1,3941.0,0.279]
[1758894254795,0.0253,3941.1,3940.4,3.2078]
[1758894254796,0.45644,3940.8,3940.4,3.2078]
[1758894254992,0.91177,3940.5,3940.4,3.2078]
[1758894255196,0.91177,3940.5,3940.4,3.4868]
[1758894255702,0.45651,3940.2,3940.0,3.2078]
[1758894255998,0.45651,3940.2,3939.5,3.2078]
[1758894255999,0.45657,3939.6,3939.5,3.2078]
[1758894256195,0.91187,3939.6,3939.5,3.4868]
[1758894256496,0.91187,3939.6,3938.6,1.82232966]
[1758894256497,0.45676,3938.1,3937.8,0.467]
[1758894256795,0.45676,3938.1,3937.0,39.7584]
[1758894256796,0.45683,3937.5,3937.3,3.2078]
[1758894256991,0.4553,3937.5,3937.3,0.279]
[1758894257193,0.4553,3937.4,3937.3,0.279]
[1758894257497,0.45686,3937.2,3936.9,3.2078]
[1758894257694,0.4553,3936.9,3935.8,0.467]
[1758894257890,3.2078,3936.6,3935.8,0.467]
[1758894258094,3.2078,3936.2,3935.7,0.279]
[1758894258393,0.4553,3936.9,3936.8,0.45689]
[1758894258601,0.4553,3937.7,3936.9,0.467]
[1758894258796,0.4553,3937.7,3937.0,3.2078]
[1758894259001,0.4553,3937.7,3937.1,0.45686]
[1758894259305,3.6631,3937.9,3937.2,0.279]
[1758894259493,0.4553,3937.9,3937.4,3.2078]
[1758894259803,3.6631,3938.4,3937.4,3.6748]
[1758894259998,0.45674,3938.2,3937.6,0.4568]
[1758894260302,0.4553,3938.1,3937.7,0.45678]
[1758894260495,3.2078,3938.4,3937.8,0.279]
[1758894260998,4.29646,3938.0,3937.0,3.2078]
[1758894261301,0.4553,3937.9,3937.7,0.45679]
[1758894261498,3.2078,3938.4,3938.3,0.92372]
[1758894261700,3.2078,3938.4,3938.3,1.20272]
[1758894261999,3.6631,3939.2,3938.6,0.467]
[1758894262195,3.6631,3939.2,3939.0,0.45664]
[1758894262391,3.2078,3939.2,3939.1,0.279]
[1758894262593,0.4553,3939.5,3939.1,0.279]
[1758894262801,3.2078,3939.6,3939.3,0.4566]
[1758894262996,3.2078,3939.6,3938.7,3.2078]
[1758894262997,3.2078,3939.6,3939.4,0.7356]